[Event "*** Titled Tuesday 3|2 Blitz (Late)"]
[Site "Chess.com"]
[Date "2017.01.03"]
[Round "6"]
[White "chesstatour"]
[Black "Andrejkin"]
[Result "0-1"]
[WhiteElo "1785"]
[BlackElo "2199"]
[TimeControl "180+2"]
[EndTime "18:09:39 PST"]
[Termination "Andrejkin won on time"]

1. c4 {[%clk 0:03:02]} 1... e5 {[%clk 0:02:58.9]} 2. Nc3 {[%clk 0:03:01.8]} 2...
Nf6 {[%clk 0:02:58.8]} 3. Nf3 {[%clk 0:03:03.3]} 3... Nc6 {[%clk 0:02:58.7]} 4.
d4 {[%clk 0:03:03.3]} 4... exd4 {[%clk 0:02:56.5]} 5. Nxd4 {[%clk 0:03:05.2]}
5... Bb4 {[%clk 0:02:54.8]} 6. g3 {[%clk 0:03:03.1]} 6... O-O {[%clk 0:02:52.6]}
7. Bg2 {[%clk 0:03:03.4]} 7... Bxc3+ {[%clk 0:02:49.2]} 8. bxc3 {[%clk
0:03:03.1]} 8... Ne5 {[%clk 0:02:49.6]} 9. c5 {[%clk 0:03:01.2]} 9... Qe7 {[%clk
0:02:47.9]} 10. Be3 {[%clk 0:01:55.8]} 10... Neg4 {[%clk 0:02:41.9]} 11. Nf5
{[%clk 0:01:43]} 11... Qe5 {[%clk 0:02:38.2]} 12. Qd3 {[%clk 0:01:13.1]} 12...
Nxe3 {[%clk 0:02:30.8]} 13. Nxe3 {[%clk 0:01:10.1]} 13... Qxc5 {[%clk 0:02:29]}
14. O-O {[%clk 0:01:08.5]} 14... Re8 {[%clk 0:02:23.8]} 15. Rfd1 {[%clk
0:01:01.1]} 15... Rb8 {[%clk 0:02:21.1]} 16. Rab1 {[%clk 0:00:46.2]} 16... b6
{[%clk 0:02:18.9]} 17. Qd4 {[%clk 0:00:19.4]} 17... Qxd4 {[%clk 0:02:16.9]} 18.
cxd4 {[%clk 0:00:21.3]} 18... Ba6 {[%clk 0:02:13.1]} 19. Rb2 {[%clk 0:00:17.3]}
19... c6 {[%clk 0:02:12.3]} 20. Bf3 {[%clk 0:00:14.3]} 20... d5 {[%clk
0:02:12.6]} 21. Rc1 {[%clk 0:00:11.2]} 21... Re6 {[%clk 0:02:10.5]} 22. Ng4
{[%clk 0:00:10.3]} 22... Nxg4 {[%clk 0:02:07]} 23. Bxg4 {[%clk 0:00:10.4]} 23...
Rd6 {[%clk 0:02:07.4]} 24. Rbc2 {[%clk 0:00:07.4]} 24... Bb5 {[%clk 0:02:05.1]}
25. Bf3 {[%clk 0:00:04.1]} 25... g5 {[%clk 0:01:49.8]} 26. e3 {[%clk 0:00:04.8]}
26... Bc4 {[%clk 0:01:47.2]} 27. a3 {[%clk 0:00:04.8]} 27... Kg7 {[%clk
0:01:44]} 28. Be2 {[%clk 0:00:05.9]} 28... b5 {[%clk 0:01:40.7]} 29. Kg2 {[%clk
0:00:03.3]} 29... f5 {[%clk 0:01:38.3]} 30. a4 {[%clk 0:00:02.2]} 30... a6
{[%clk 0:01:38]} 31. axb5 {[%clk 0:00:03.2]} 31... axb5 {[%clk 0:01:35.5]} 32.
Bxc4 {[%clk 0:00:03.4]} 32... bxc4 {[%clk 0:01:35.7]} 33. h3 {[%clk 0:00:03.6]}
33... f4 {[%clk 0:01:32.6]} 34. gxf4 {[%clk 0:00:03.6]} 34... gxf4 {[%clk
0:01:33]} 35. Kf3 {[%clk 0:00:03.8]} 35... fxe3 {[%clk 0:01:31]} 36. fxe3 {[%clk
0:00:02.4]} 36... Rf8+ {[%clk 0:01:29.6]} 37. Ke2 {[%clk 0:00:03.1]} 37... Rg6
{[%clk 0:01:27.8]} 0-1

[Event "*** Titled Tuesday 3|2 Blitz (Late)"]
[Site "Chess.com"]
[Date "2017.01.03"]
[Round "6"]
[White "Frolik67"]
[Black "MrReinberg"]
[Result "1-0"]
[WhiteElo "2325"]
[BlackElo "2266"]
[TimeControl "180+2"]
[EndTime "18:09:59 PST"]
[Termination "Frolik67 won by checkmate"]

1. e4 {[%clk 0:03:02]} 1... c5 {[%clk 0:03:00.4]} 2. Nf3 {[%clk 0:03:02.6]} 2...
g6 {[%clk 0:03:00]} 3. d4 {[%clk 0:03:02.8]} 3... cxd4 {[%clk 0:03:01.9]} 4.
Nxd4 {[%clk 0:03:04.6]} 4... Nf6 {[%clk 0:03:03.3]} 5. f3 {[%clk 0:03:05.3]}
5... d6 {[%clk 0:03:03.9]} 6. c4 {[%clk 0:03:06.5]} 6... Bg7 {[%clk 0:03:04.6]}
7. Nc3 {[%clk 0:03:07.3]} 7... O-O {[%clk 0:03:06.1]} 8. Be3 {[%clk 0:03:07.2]}
8... Nc6 {[%clk 0:03:07.4]} 9. Be2 {[%clk 0:03:07.1]} 9... Nxd4 {[%clk
0:02:56.7]} 10. Bxd4 {[%clk 0:03:07]} 10... Be6 {[%clk 0:02:58.3]} 11. Qd2
{[%clk 0:03:04.7]} 11... Qa5 {[%clk 0:02:59]} 12. b3 {[%clk 0:03:05]} 12... Rfc8
{[%clk 0:02:59.7]} 13. O-O {[%clk 0:02:59.1]} 13... a6 {[%clk 0:02:55.2]} 14.
Rfd1 {[%clk 0:02:57.9]} 14... b5 {[%clk 0:02:48.6]} 15. cxb5 {[%clk 0:02:55]}
15... axb5 {[%clk 0:02:50.5]} 16. Nxb5 {[%clk 0:02:52.1]} 16... Qxd2 {[%clk
0:02:49.7]} 17. Rxd2 {[%clk 0:02:51.9]} 17... Nd7 {[%clk 0:01:44]} 18. Bxg7
{[%clk 0:02:43.2]} 18... Kxg7 {[%clk 0:01:43.8]} 19. Nd4 {[%clk 0:02:34.6]}
19... Nc5 {[%clk 0:01:38.3]} 20. b4 {[%clk 0:02:28.8]} 20... Na4 {[%clk
0:01:24.6]} 21. Bb5 {[%clk 0:02:22.5]} 21... Nc3 {[%clk 0:01:07.8]} 22. Bc6
{[%clk 0:02:21.6]} 22... Ra3 {[%clk 0:00:57.9]} 23. b5 {[%clk 0:02:17.7]} 23...
Bxa2 {[%clk 0:00:51.9]} 24. b6 {[%clk 0:02:05.8]} 24... e5 {[%clk 0:00:50.8]}
25. b7 {[%clk 0:02:06.6]} 25... Rb8 {[%clk 0:00:49]} 26. Nb5 {[%clk 0:01:54]}
26... Nxb5 {[%clk 0:00:30.1]} 27. Rdxa2 {[%clk 0:01:54.8]} 27... Rxa2 {[%clk
0:00:26.3]} 28. Rxa2 {[%clk 0:01:55.3]} 28... Nc7 {[%clk 0:00:27.5]} 29. Ra8
{[%clk 0:01:52.8]} 29... Nxa8 {[%clk 0:00:27.3]} 30. bxa8=Q {[%clk 0:01:53.9]}
30... Rxa8 {[%clk 0:00:28.1]} 31. Bxa8 {[%clk 0:01:55.8]} 31... f5 {[%clk
0:00:28.8]} 32. Bd5 {[%clk 0:01:56.4]} 32... Kf6 {[%clk 0:00:29.5]} 33. Kf2
{[%clk 0:01:57.3]} 33... Kg5 {[%clk 0:00:30.7]} 34. Ke3 {[%clk 0:01:58.3]} 34...
h5 {[%clk 0:00:31.5]} 35. Kd3 {[%clk 0:01:57.4]} 35... Kf4 {[%clk 0:00:31.3]}
36. Bf7 {[%clk 0:01:58.4]} 36... Kg5 {[%clk 0:00:07.8]} 37. Kc4 {[%clk
0:01:50.9]} 37... h4 {[%clk 0:00:02.9]} 38. Kd5 {[%clk 0:01:50.7]} 38... h3
{[%clk 0:00:03.3]} 39. g3 {[%clk 0:01:50.3]} 39... f4 {[%clk 0:00:04]} 40. g4
{[%clk 0:01:51.3]} 40... Kh4 {[%clk 0:00:03.7]} 41. Bxg6 {[%clk 0:01:51.3]}
41... Kg5 {[%clk 0:00:03.8]} 42. Bf5 {[%clk 0:01:52.2]} 42... Kh4 {[%clk
0:00:03.8]} 43. Kxd6 {[%clk 0:01:53.3]} 43... Kg5 {[%clk 0:00:04.8]} 44. Kxe5
{[%clk 0:01:54.4]} 44... Kh4 {[%clk 0:00:05.7]} 45. Kd6 {[%clk 0:01:55.6]} 45...
Kg5 {[%clk 0:00:06.7]} 46. e5 {[%clk 0:01:57.1]} 46... Kh4 {[%clk 0:00:07.9]}
47. e6 {[%clk 0:01:58]} 47... Kg5 {[%clk 0:00:09]} 48. e7 {[%clk 0:01:59.2]}
48... Kf6 {[%clk 0:00:09.7]} 49. e8=Q {[%clk 0:01:58.2]} 49... Kg7 {[%clk
0:00:10]} 50. Ke5 {[%clk 0:01:52]} 50... Kh6 {[%clk 0:00:08.5]} 51. Qg6# {[%clk
0:01:52.5]} 1-0

[Event "*** Titled Tuesday 3|2 Blitz (Late)"]
[Site "Chess.com"]
[Date "2017.01.03"]
[Round "6"]
[White "yurisolo"]
[Black "platy3"]
[Result "1-0"]
[WhiteElo "2466"]
[BlackElo "2591"]
[TimeControl "180+2"]
[EndTime "18:10:10 PST"]
[Termination "yurisolo won by checkmate"]

1. e4 {[%clk 0:03:00]} 1... c5 {[%clk 0:03:00.4]} 2. Nf3 {[%clk 0:03:00.6]} 2...
e6 {[%clk 0:02:59.7]} 3. d4 {[%clk 0:03:02]} 3... cxd4 {[%clk 0:03:01.6]} 4.
Nxd4 {[%clk 0:03:03.8]} 4... Nf6 {[%clk 0:03:03.2]} 5. Nc3 {[%clk 0:03:05]} 5...
d6 {[%clk 0:03:04.8]} 6. Be3 {[%clk 0:03:05.6]} 6... a6 {[%clk 0:03:05.7]} 7. f3
{[%clk 0:03:06.8]} 7... b5 {[%clk 0:03:05.3]} 8. Qd2 {[%clk 0:03:08.2]} 8...
Nbd7 {[%clk 0:03:06.3]} 9. O-O-O {[%clk 0:03:09.4]} 9... Bb7 {[%clk 0:03:07.6]}
10. g4 {[%clk 0:03:09.2]} 10... h6 {[%clk 0:03:09.3]} 11. h4 {[%clk 0:03:09.9]}
11... b4 {[%clk 0:03:10.9]} 12. Na4 {[%clk 0:03:10.3]} 12... Qa5 {[%clk
0:03:12]} 13. b3 {[%clk 0:03:11.1]} 13... Nc5 {[%clk 0:03:13.7]} 14. a3 {[%clk
0:03:11.4]} 14... Nxa4 {[%clk 0:03:15.2]} 15. axb4 {[%clk 0:03:12.9]} 15... Qc7
{[%clk 0:03:16.8]} 16. bxa4 {[%clk 0:03:14.4]} 16... d5 {[%clk 0:03:18.5]} 17.
e5 {[%clk 0:03:13.4]} 17... Nd7 {[%clk 0:03:19.6]} 18. f4 {[%clk 0:03:14.9]}
18... Nb6 {[%clk 0:03:18.7]} 19. Rh3 {[%clk 0:03:13.6]} 19... Rc8 {[%clk
0:03:18.9]} 20. Bf2 {[%clk 0:03:11.9]} 20... Nc4 {[%clk 0:03:11.5]} 21. Qc3
{[%clk 0:03:07.7]} 21... a5 {[%clk 0:03:00.5]} 22. Bxc4 {[%clk 0:03:00.4]} 22...
dxc4 {[%clk 0:02:11.2]} 23. Nb5 {[%clk 0:02:54]} 23... Qc6 {[%clk 0:02:12.5]}
24. bxa5 {[%clk 0:02:49.5]} 24... Qg2 {[%clk 0:02:13.1]} 25. Qd4 {[%clk
0:02:30.4]} 25... Bd5 {[%clk 0:01:46.7]} 26. Rg3 {[%clk 0:02:25.4]} 26... Qh2
{[%clk 0:01:47.7]} 27. Nd6+ {[%clk 0:01:48.9]} 27... Bxd6 {[%clk 0:01:46.2]} 28.
exd6 {[%clk 0:01:50.8]} 28... O-O {[%clk 0:01:45.8]} 29. Qe3 {[%clk 0:01:48.9]}
29... Qxh4 {[%clk 0:01:15.5]} 30. g5 {[%clk 0:01:48.9]} 30... Qh5 {[%clk
0:01:13]} 31. Rdg1 {[%clk 0:01:40.5]} 31... hxg5 {[%clk 0:00:26.5]} 32. Rxg5
{[%clk 0:01:39.2]} 32... Qh6 {[%clk 0:00:28]} 33. Qg3 {[%clk 0:01:34.2]} 33...
g6 {[%clk 0:00:26.8]} 34. Bd4 {[%clk 0:01:34.9]} 34... c3 {[%clk 0:00:23.8]} 35.
Qe3 {[%clk 0:01:21.2]} 35... Rc4 {[%clk 0:00:22.9]} 36. Qe5 {[%clk 0:01:19.7]}
36... Rxa4 {[%clk 0:00:14.7]} 37. Bxc3 {[%clk 0:01:13.2]} 37... Kh7 {[%clk
0:00:05]} 38. Rh5 {[%clk 0:01:01]} 38... Qxh5 {[%clk 0:00:05.1]} 39. Qg7# {[%clk
0:01:01.3]} 1-0

[Event "*** Titled Tuesday 3|2 Blitz (Late)"]
[Site "Chess.com"]
[Date "2017.01.03"]
[Round "6"]
[White "MateusViageiro"]
[Black "Dr-Bassem"]
[Result "0-1"]
[WhiteElo "2317"]
[BlackElo "2649"]
[TimeControl "180+2"]
[EndTime "18:10:11 PST"]
[Termination "Dr-Bassem won by checkmate"]

1. e4 {[%clk 0:03:01.9]} 1... e5 {[%clk 0:02:58.4]} 2. Nf3 {[%clk 0:03:02.9]}
2... Nc6 {[%clk 0:02:58.7]} 3. Bb5 {[%clk 0:03:04.4]} 3... a6 {[%clk 0:02:59.4]}
4. Ba4 {[%clk 0:03:05.3]} 4... Nf6 {[%clk 0:03:00.2]} 5. Bxc6 {[%clk 0:03:06.2]}
5... dxc6 {[%clk 0:03:00.9]} 6. d3 {[%clk 0:03:07]} 6... Bd6 {[%clk 0:02:58.8]}
7. Nbd2 {[%clk 0:03:07.9]} 7... Be6 {[%clk 0:02:53.3]} 8. Qe2 {[%clk 0:03:08.5]}
8... Nd7 {[%clk 0:02:53]} 9. Nc4 {[%clk 0:03:04.9]} 9... Qe7 {[%clk 0:02:45.9]}
10. Bd2 {[%clk 0:03:04]} 10... O-O-O {[%clk 0:02:44.4]} 11. Bc3 {[%clk
0:03:04.4]} 11... f6 {[%clk 0:02:42.8]} 12. a4 {[%clk 0:03:03.6]} 12... g5
{[%clk 0:02:40.3]} 13. d4 {[%clk 0:02:33]} 13... Bxc4 {[%clk 0:01:55]} 14. Qxc4
{[%clk 0:02:32]} 14... exd4 {[%clk 0:01:56.3]} 15. Qxd4 {[%clk 0:02:26.7]} 15...
Bc5 {[%clk 0:01:37.8]} 16. Qc4 {[%clk 0:02:17.1]} 16... Rhe8 {[%clk 0:01:29.7]}
17. Nd2 {[%clk 0:01:44.1]} 17... f5 {[%clk 0:01:12.1]} 18. f3 {[%clk 0:01:32]}
18... Nb6 {[%clk 0:01:06.9]} 19. Qe2 {[%clk 0:01:29.4]} 19... Nd5 {[%clk
0:01:07.1]} 20. O-O-O {[%clk 0:00:39.5]} 20... Ba3 {[%clk 0:00:37.6]} 21. Nc4
{[%clk 0:00:09.6]} 21... Nxc3 {[%clk 0:00:36.9]} 22. Rxd8+ {[%clk 0:00:10.4]}
22... Rxd8 {[%clk 0:00:37.6]} 23. Qe3 {[%clk 0:00:11.1]} 23... Na2+ {[%clk
0:00:31.7]} 24. Kb1 {[%clk 0:00:11.1]} 24... Bc5 {[%clk 0:00:33.1]} 25. Qb3
{[%clk 0:00:10.4]} 25... Nb4 {[%clk 0:00:33]} 26. exf5 {[%clk 0:00:09.4]} 26...
Qe2 {[%clk 0:00:31]} 27. f6 {[%clk 0:00:09.6]} 27... Qd1+ {[%clk 0:00:28.8]} 28.
Rxd1 {[%clk 0:00:09]} 28... Rxd1# {[%clk 0:00:30.1]} 0-1

[Event "*** Titled Tuesday 3|2 Blitz (Late)"]
[Site "Chess.com"]
[Date "2017.01.03"]
[Round "6"]
[White "Hamisandwich"]
[Black "MFBerna"]
[Result "1-0"]
[WhiteElo "2393"]
[BlackElo "2219"]
[TimeControl "180+2"]
[EndTime "18:10:11 PST"]
[Termination "Hamisandwich won by resignation"]

1. a3 {[%clk 0:03:02]} 1... e5 {[%clk 0:03:00.4]} 2. d3 {[%clk 0:03:02.6]} 2...
d5 {[%clk 0:03:01]} 3. Nf3 {[%clk 0:03:04.2]} 3... Nc6 {[%clk 0:03:01.7]} 4. e4
{[%clk 0:03:05.4]} 4... dxe4 {[%clk 0:03:01.7]} 5. dxe4 {[%clk 0:03:07.3]} 5...
Qxd1+ {[%clk 0:03:02.8]} 6. Kxd1 {[%clk 0:03:09.2]} 6... Nf6 {[%clk 0:03:04]} 7.
Bd3 {[%clk 0:03:09.4]} 7... Bc5 {[%clk 0:03:01.9]} 8. Ke2 {[%clk 0:03:04.2]}
8... h6 {[%clk 0:03:01.9]} 9. h3 {[%clk 0:02:58.2]} 9... Be6 {[%clk 0:03:00.1]}
10. Be3 {[%clk 0:02:52.8]} 10... Bxe3 {[%clk 0:02:47.9]} 11. Kxe3 {[%clk
0:02:54.7]} 11... a6 {[%clk 0:02:46.1]} 12. Nbd2 {[%clk 0:02:55.2]} 12... O-O-O
{[%clk 0:02:42.7]} 13. b4 {[%clk 0:02:42.9]} 13... Ne8 {[%clk 0:02:26.4]} 14.
Rab1 {[%clk 0:02:35.4]} 14... Nd6 {[%clk 0:02:18.6]} 15. c4 {[%clk 0:02:36.4]}
15... f5 {[%clk 0:02:01.5]} 16. b5 {[%clk 0:02:07.9]} 16... axb5 {[%clk
0:01:59.8]} 17. cxb5 {[%clk 0:02:06.5]} 17... f4+ {[%clk 0:02:00]} 18. Ke2
{[%clk 0:02:06.7]} 18... Nd4+ {[%clk 0:02:00]} 19. Nxd4 {[%clk 0:02:07.5]} 19...
exd4 {[%clk 0:02:01.9]} 20. Rhc1 {[%clk 0:02:03.8]} 20... Nf7 {[%clk 0:01:53.8]}
21. Nf3 {[%clk 0:02:01.9]} 21... g5 {[%clk 0:01:51.5]} 22. Rb4 {[%clk
0:01:59.9]} 22... g4 {[%clk 0:01:46.8]} 23. Nxd4 {[%clk 0:02:00.9]} 23... f3+
{[%clk 0:01:23.9]} 24. gxf3 {[%clk 0:01:39.5]} 24... gxf3+ {[%clk 0:01:25.8]}
25. Nxf3 {[%clk 0:01:30.8]} 25... Bxh3 {[%clk 0:01:25.3]} 26. Ke3 {[%clk
0:01:27.4]} 26... Bg4 {[%clk 0:01:16.1]} 27. Nd4 {[%clk 0:01:26.1]} 27... Ne5
{[%clk 0:01:14.5]} 28. Bf1 {[%clk 0:01:16.2]} 28... Bd7 {[%clk 0:00:59.5]} 29.
Be2 {[%clk 0:01:16.4]} 29... Rde8 {[%clk 0:00:53.3]} 30. f4 {[%clk 0:01:14.8]}
30... Nf7 {[%clk 0:00:44.4]} 31. Rbc4 {[%clk 0:01:09.7]} 31... Kd8 {[%clk
0:00:36.5]} 32. Rxc7 {[%clk 0:01:07.7]} 32... Nd6 {[%clk 0:00:35.2]} 33. e5
{[%clk 0:01:02.6]} 33... Rhg8 {[%clk 0:00:29.2]} 34. Bf3 {[%clk 0:00:52.8]}
34... Nxb5 {[%clk 0:00:22.1]} 35. Nxb5 {[%clk 0:00:52.3]} 35... Bxb5 {[%clk
0:00:22.7]} 36. Rxb7 {[%clk 0:00:53.2]} 36... Bd7 {[%clk 0:00:13.9]} 37. Rd1
{[%clk 0:00:53.8]} 1-0

[Event "*** Titled Tuesday 3|2 Blitz (Late)"]
[Site "Chess.com"]
[Date "2017.01.03"]
[Round "6"]
[White "stalyansky"]
[Black "josiwales"]
[Result "0-1"]
[WhiteElo "1093"]
[BlackElo "2238"]
[TimeControl "180+2"]
[EndTime "18:10:16 PST"]
[Termination "josiwales won by resignation"]

1. e4 {[%clk 0:03:02]} 1... c5 {[%clk 0:02:59.9]} 2. Nf3 {[%clk 0:03:02.4]} 2...
Nc6 {[%clk 0:02:59.8]} 3. Bb5 {[%clk 0:03:02.9]} 3... Na5 {[%clk 0:03:00.4]} 4.
O-O {[%clk 0:02:56.2]} 4... a6 {[%clk 0:03:00.3]} 5. Be2 {[%clk 0:02:56.3]} 5...
b5 {[%clk 0:02:59]} 6. d4 {[%clk 0:02:47.9]} 6... e6 {[%clk 0:02:58.5]} 7. a4
{[%clk 0:02:36.6]} 7... b4 {[%clk 0:02:56.6]} 8. c3 {[%clk 0:02:09.1]} 8... Bb7
{[%clk 0:02:49.2]} 9. dxc5 {[%clk 0:02:08]} 9... Bxc5 {[%clk 0:02:47.5]} 10.
cxb4 {[%clk 0:02:06.3]} 10... Bxb4 {[%clk 0:02:46.8]} 11. Qd4 {[%clk 0:02:02.2]}
11... Bf8 {[%clk 0:02:25.2]} 12. Nc3 {[%clk 0:01:43.9]} 12... Nc6 {[%clk
0:02:23.2]} 13. Qd1 {[%clk 0:01:30.5]} 13... d6 {[%clk 0:02:19.8]} 14. Bg5
{[%clk 0:01:18.6]} 14... Be7 {[%clk 0:02:14.3]} 15. Bf4 {[%clk 0:01:11.9]} 15...
Nf6 {[%clk 0:02:09.9]} 16. e5 {[%clk 0:01:08.3]} 16... dxe5 {[%clk 0:02:07.5]}
17. Nxe5 {[%clk 0:01:07.2]} 17... O-O {[%clk 0:02:05.1]} 18. Nxc6 {[%clk
0:00:58.7]} 18... Bxc6 {[%clk 0:02:00.9]} 19. Rc1 {[%clk 0:00:56.4]} 19... Qa5
{[%clk 0:01:45.9]} 20. Bf3 {[%clk 0:00:48.5]} 20... Bxf3 {[%clk 0:01:45.2]} 21.
Qxf3 {[%clk 0:00:49]} 21... Rad8 {[%clk 0:01:35.6]} 22. Rfe1 {[%clk 0:00:45.7]}
22... Bb4 {[%clk 0:01:26.2]} 23. Be5 {[%clk 0:00:43.6]} 23... Nd5 {[%clk
0:01:15.3]} 24. Qg3 {[%clk 0:00:31.5]} 24... f6 {[%clk 0:01:09.6]} 25. Nxd5
{[%clk 0:00:28.4]} 25... Qxd5 {[%clk 0:00:55.2]} 26. Bc7 {[%clk 0:00:21.5]}
26... Bxe1 {[%clk 0:00:39.5]} 27. Bxd8 {[%clk 0:00:21.4]} 27... Bd2 {[%clk
0:00:36.3]} 28. Rc7 {[%clk 0:00:11.7]} 28... Bh6 {[%clk 0:00:26.9]} 29. h4
{[%clk 0:00:04.8]} 29... Rxd8 {[%clk 0:00:24.4]} 30. Ra7 {[%clk 0:00:04.2]}
30... Qd1+ {[%clk 0:00:20]} 31. Kh2 {[%clk 0:00:04.9]} 31... Qd4 {[%clk
0:00:21.6]} 32. Qf3 {[%clk 0:00:05.5]} 32... Qxa7 {[%clk 0:00:20.9]} 0-1

[Event "*** Titled Tuesday 3|2 Blitz (Late)"]
[Site "Chess.com"]
[Date "2017.01.03"]
[Round "6"]
[White "FLchessplayer"]
[Black "Ez_Chess2016"]
[Result "1-0"]
[WhiteElo "2107"]
[BlackElo "1977"]
[TimeControl "180+2"]
[EndTime "18:10:24 PST"]
[Termination "FLchessplayer won by checkmate"]

1. d4 {[%clk 0:03:02]} 1... Nf6 {[%clk 0:03:00.2]} 2. f3 {[%clk 0:03:02.1]} 2...
c5 {[%clk 0:02:58.4]} 3. d5 {[%clk 0:02:59.5]} 3... e6 {[%clk 0:02:58.1]} 4. c4
{[%clk 0:03:00]} 4... exd5 {[%clk 0:02:59]} 5. cxd5 {[%clk 0:03:01.1]} 5... g6
{[%clk 0:03:00.4]} 6. Nc3 {[%clk 0:03:02.2]} 6... Bg7 {[%clk 0:03:01.1]} 7. e4
{[%clk 0:03:03.2]} 7... O-O {[%clk 0:03:01.8]} 8. Bf4 {[%clk 0:03:04.2]} 8... d6
{[%clk 0:02:53.8]} 9. Qd2 {[%clk 0:03:05.2]} 9... a6 {[%clk 0:02:36.5]} 10. a4
{[%clk 0:03:05.1]} 10... Re8 {[%clk 0:02:37.1]} 11. Bc4 {[%clk 0:03:02.7]} 11...
Nbd7 {[%clk 0:02:33.6]} 12. Nge2 {[%clk 0:03:03.6]} 12... Ne5 {[%clk 0:02:24.4]}
13. b3 {[%clk 0:03:04]} 13... Rb8 {[%clk 0:02:10.5]} 14. Rb1 {[%clk 0:02:49.6]}
14... Bd7 {[%clk 0:02:01.3]} 15. O-O {[%clk 0:02:48.2]} 15... b5 {[%clk
0:01:59.6]} 16. axb5 {[%clk 0:02:43.9]} 16... axb5 {[%clk 0:02:01.5]} 17. Bxe5
{[%clk 0:02:44.7]} 17... Rxe5 {[%clk 0:01:55.4]} 18. Bd3 {[%clk 0:02:44.2]}
18... b4 {[%clk 0:01:54.4]} 19. Nd1 {[%clk 0:02:41.3]} 19... Ra8 {[%clk
0:01:16.3]} 20. Ne3 {[%clk 0:02:39.7]} 20... Bh6 {[%clk 0:01:10.3]} 21. Rfe1
{[%clk 0:02:16.8]} 21... Nxd5 {[%clk 0:01:05.9]} 22. Ng3 {[%clk 0:02:08.3]}
22... Nxe3 {[%clk 0:01:03.6]} 23. Rxe3 {[%clk 0:02:09.3]} 23... Qb6 {[%clk
0:00:50.3]} 24. Bc4 {[%clk 0:02:08.9]} 24... d5 {[%clk 0:00:51.3]} 25. Bxd5
{[%clk 0:02:06.5]} 25... c4 {[%clk 0:00:52.6]} 26. Nf1 {[%clk 0:02:06.8]} 26...
c3 {[%clk 0:00:29.5]} 27. Qf2 {[%clk 0:01:45.9]} 27... Bxe3 {[%clk 0:00:17.6]}
28. Nxe3 {[%clk 0:01:45.1]} 28... Ra3 {[%clk 0:00:16.7]} 29. Kh1 {[%clk
0:01:40.8]} 29... Be6 {[%clk 0:00:12.1]} 30. Qe2 {[%clk 0:01:39.6]} 30... Bxd5
{[%clk 0:00:12.5]} 31. Nxd5 {[%clk 0:01:40.6]} 31... Qb7 {[%clk 0:00:09.3]} 32.
Qc4 {[%clk 0:01:40.9]} 32... Kg7 {[%clk 0:00:05.5]} 33. h3 {[%clk 0:01:33.5]}
33... Re6 {[%clk 0:00:05.6]} 34. Nxb4 {[%clk 0:01:29.3]} 34... c2 {[%clk
0:00:04.6]} 35. Nxc2 {[%clk 0:01:27]} 35... Raa6 {[%clk 0:00:05.8]} 36. Qd4+
{[%clk 0:01:26.1]} 36... f6 {[%clk 0:00:06]} 37. Ne3 {[%clk 0:01:27.1]} 37...
Red6 {[%clk 0:00:07]} 38. Nd5 {[%clk 0:01:27.8]} 38... Qa7 {[%clk 0:00:08.1]}
39. Qb2 {[%clk 0:01:27.1]} 39... Ra2 {[%clk 0:00:08.9]} 40. Qc3 {[%clk
0:01:27.4]} 40... Qf2 {[%clk 0:00:09.9]} 41. Rg1 {[%clk 0:01:27.1]} 41... Rc2
{[%clk 0:00:10.4]} 42. Qb4 {[%clk 0:01:25.9]} 42... Rcc6 {[%clk 0:00:08.7]} 43.
Qb7+ {[%clk 0:01:26.1]} 43... Kh6 {[%clk 0:00:09.1]} 44. Qe7 {[%clk 0:01:26.4]}
44... Re6 {[%clk 0:00:09.5]} 45. Qf8+ {[%clk 0:01:26.9]} 45... Kh5 {[%clk
0:00:10.9]} 46. Qg7 {[%clk 0:01:26.6]} 46... h6 {[%clk 0:00:10.3]} 47. g4+
{[%clk 0:01:23.1]} 47... Kh4 {[%clk 0:00:11.2]} 48. Qxh6# {[%clk 0:01:24]} 1-0

[Event "*** Titled Tuesday 3|2 Blitz (Late)"]
[Site "Chess.com"]
[Date "2017.01.03"]
[Round "6"]
[White "yian123"]
[Black "LazarusIcarus"]
[Result "1-0"]
[WhiteElo "2381"]
[BlackElo "2127"]
[TimeControl "180+2"]
[EndTime "18:10:30 PST"]
[Termination "yian123 won by resignation"]

1. e4 {[%clk 0:03:00.7]} 1... e5 {[%clk 0:02:50.2]} 2. Nf3 {[%clk 0:03:00.8]}
2... Nc6 {[%clk 0:02:50.8]} 3. Bb5 {[%clk 0:03:01.9]} 3... a6 {[%clk 0:02:50]}
4. Ba4 {[%clk 0:03:02.8]} 4... Nf6 {[%clk 0:02:45.4]} 5. O-O {[%clk 0:03:03]}
5... b5 {[%clk 0:02:45.2]} 6. Bb3 {[%clk 0:03:02.6]} 6... Bb7 {[%clk 0:02:45.2]}
7. d3 {[%clk 0:03:02.1]} 7... Be7 {[%clk 0:02:45.6]} 8. a3 {[%clk 0:03:02]} 8...
O-O {[%clk 0:02:43.7]} 9. Nc3 {[%clk 0:03:00.9]} 9... h6 {[%clk 0:02:34.6]} 10.
Nd5 {[%clk 0:02:59.1]} 10... Nxd5 {[%clk 0:02:30.1]} 11. Bxd5 {[%clk 0:02:56]}
11... d6 {[%clk 0:02:31.2]} 12. d4 {[%clk 0:02:51.4]} 12... Qc8 {[%clk
0:02:26.2]} 13. dxe5 {[%clk 0:02:33.3]} 13... Nxe5 {[%clk 0:02:19.1]} 14. Re1
{[%clk 0:02:18.1]} 14... Bf6 {[%clk 0:02:16.9]} 15. Nd4 {[%clk 0:02:17]} 15...
c6 {[%clk 0:02:06]} 16. Ba2 {[%clk 0:02:15.2]} 16... Rd8 {[%clk 0:02:03.2]} 17.
Nf5 {[%clk 0:01:59.4]} 17... d5 {[%clk 0:01:57.9]} 18. Qe2 {[%clk 0:01:54.8]}
18... d4 {[%clk 0:01:48.1]} 19. f4 {[%clk 0:01:46.9]} 19... d3 {[%clk 0:01:46]}
20. cxd3 {[%clk 0:01:36.9]} 20... Nxd3 {[%clk 0:01:43]} 21. Rd1 {[%clk
0:01:31.2]} 21... Nxc1 {[%clk 0:01:32.4]} 22. Raxc1 {[%clk 0:01:33.1]} 22... c5
{[%clk 0:01:06.7]} 23. Nd6 {[%clk 0:01:09]} 23... Rxd6 {[%clk 0:00:38.5]} 24.
Rxd6 {[%clk 0:01:07.3]} 24... c4 {[%clk 0:00:39.5]} 25. e5 {[%clk 0:01:04.2]}
25... Be7 {[%clk 0:00:40.1]} 26. Rdd1 {[%clk 0:01:04.3]} 26... Bc5+ {[%clk
0:00:40.5]} 27. Kh1 {[%clk 0:01:05]} 27... Qf5 {[%clk 0:00:40.9]} 28. Rf1 {[%clk
0:00:58]} 28... Rd8 {[%clk 0:00:37.9]} 29. Bb1 {[%clk 0:00:58]} 29... Qc8 {[%clk
0:00:27.7]} 30. Be4 {[%clk 0:00:56.6]} 30... Rd4 {[%clk 0:00:18.5]} 31. Bxb7
{[%clk 0:00:56]} 31... Qxb7 {[%clk 0:00:19.8]} 32. Rcd1 {[%clk 0:00:56.2]} 32...
Qd7 {[%clk 0:00:20.5]} 33. Rxd4 {[%clk 0:00:54.2]} 33... Qxd4 {[%clk 0:00:21.5]}
34. Rd1 {[%clk 0:00:55.5]} 34... Qxf4 {[%clk 0:00:22.3]} 35. e6 {[%clk
0:00:51.9]} 35... fxe6 {[%clk 0:00:23.2]} 36. Qxe6+ {[%clk 0:00:51.9]} 36... Kh7
{[%clk 0:00:24.7]} 37. Qd5 {[%clk 0:00:36.6]} 37... Qe3 {[%clk 0:00:23]} 38.
Qf5+ {[%clk 0:00:33.8]} 38... g6 {[%clk 0:00:19.6]} 39. Qf7+ {[%clk 0:00:33.8]}
1-0